bitfinex/quotes_ETHUSD_20240716
["timestamp","ask_amount","ask_price","bid_price","bid_amount"]
[1721143252025,2.89628,3452.7,3451.7,2.89706]
[1721143252232,2.89653,3452.4,3451.6,2.3928]
[1721143252430,2.89653,3452.4,3451.6,3.516746]
[1721143252631,2.89686,3452.1,3451.1,2.89759]
[1721143252828,2.89703,3451.9,3450.9,5.21588]
[1721143253028,2.89649,3452.5,3450.7,2.89793]
[1721143253029,2.8966,3452.4,3450.7,2.89793]
[1721143253240,2.89735,3451.5,3450.6,2.89803]
[1721143253491,2.89735,3451.5,3450.7,2.89795]
[1721143253780,6.4466,3452.4,3451.2,2.89749]
[1721143253781,2.89692,3452.0,3451.2,2.89749]
[1721143253929,2.89692,3452.0,3451.3,2.8974]
[1721143254133,5.35659,3453.1,3450.8,0.289795]
[1721143254134,2.8959,3453.2,3451.4,5.31939]
[1721143254335,2.89684,3452.1,3451.4,2.4221]
[1721143254648,2.89684,3452.1,3451.4,2.89737]
[1721143254986,2.89684,3452.1,3451.4,0.579489]
[1721143255189,2.89684,3452.1,3451.3,2.89744]
[1721143255485,2.89652,3452.5,3451.0,2.89765]
[1721143255637,2.89706,3451.8,3451.0,2.89765]
[1721143255841,2.8967,3452.2,3450.8,2.771895]
[1721143256136,2.8967,3452.2,3449.3,3.35366116]
[1721143256137,2.89739,3451.4,3450.4,5.95018]
[1721143256332,2.89746,3451.3,3450.3,2.89828]
[1721143256636,2.89738,3451.4,3450.4,2.8982]
[1721143257042,2.89721,3451.6,3450.4,2.8982]
[1721143257341,5.94834,3452.7,3450.0,5.28333]
[1721143257342,5.9485,3452.5,3450.0,5.28333]
[1721143257635,2.8971,3451.8,3450.6,2.89803]
[1721143257948,2.89696,3451.9,3450.6,2.89803]
[1721143258133,2.8973,3451.5,3450.4,2.89815]
[1721143258335,2.89744,3451.4,3450.3,2.89823]
[1721143258541,2.89744,3451.4,3450.5,2.89805]
[1721143258734,2.89723,3451.6,3450.6,3.47767]
[1721143259043,3.0,3452.4,3450.7,3.052]
[1721143259254,3.2411,3453.7,3451.4,2.89733]
[1721143259255,2.89612,3452.9,3451.4,2.89733]
[1721143259448,2.89609,3453.0,3451.7,5.94906]
[1721143259650,3.46078,3453.6,3451.8,2.3062]
[1721143259651,2.89612,3452.9,3451.8,2.3062]
[1721143259896,2.89588,3453.2,3451.9,4.22516753]
[1721143260035,2.3417,3453.9,3451.9,1.115239]
[1721143260372,2.89588,3453.2,3451.8,2.3062]
[1721143260590,2.3417,3453.9,3451.9,2.89694]
[1721143260804,2.3417,3453.9,3451.8,2.3062]
[1721143260805,2.89571,3453.4,3452.4,2.89653]
[1721143261103,2.89571,3453.4,3452.2,2.8967]
[1721143261250,2.2545,3454.6,3451.8,5.20322]
[1721143261450,2.2545,3454.6,3451.9,0.520322]
[1721143261451,2.89618,3452.9,3451.9,0.520322]
[1721143261680,2.89618,3452.9,3451.8,2.3062]
[1721143261914,2.89617,3452.9,3451.8,2.3062]
[1721143262068,2.89676,3452.2,3451.8,2.3062]
[1721143262400,2.89612,3452.9,3451.2,5.4629]
[1721143262401,2.89679,3452.1,3451.2,5.4629]
[1721143262553,2.89647,3452.5,3451.4,5.94936]
[1721143262756,2.89677,3452.2,3451.5,0.836026]
[1721143262953,2.89663,3452.3,3451.5,0.836026]
[1721143263154,2.89673,3452.2,3451.5,0.836026]
[1721143263394,2.89681,3452.1,3451.5,0.836026]
[1721143263876,2.89746,3451.3,3450.7,2.4072]
[1721143264083,2.8973,3451.5,3450.7,2.4072]
[1721143264084,5.19037006,3451.2,3450.7,2.4072]
[1721143264290,2.89766,3451.1,3450.7,2.4072]
[1721143264594,2.89723,3451.6,3450.7,2.4072]
[1721143264798,6.44636,3452.6,3450.8,0.54592]
[1721143264799,2.89737,3451.5,3450.8,0.54592]
[1721143264965,2.89743,3451.4,3450.8,0.54592]
[1721143265157,2.89763,3451.1,3450.8,0.54592]
[1721143265357,2.89722,3451.6,3450.7,2.4072]
[1721143265581,2.89709,3451.8,3450.8,2.89786]
[1721143265873,2.89753,3451.3,3450.7,2.4072]
[1721143266075,2.89752,3451.3,3450.7,2.4072]
[1721143266487,2.89765,3451.1,3450.7,2.4072]
[1721143266705,2.89765,3451.1,3450.8,0.24072]
[1721143267001,2.89779,3450.9,3450.1,34.270033]
[1721143267151,2.8971,3451.8,3450.1,34.270033]
[1721143267152,2.89808,3450.6,3450.1,34.270033]
[1721143267547,2.89813,3450.5,3450.1,34.270033]
[1721143267996,2.8979,3450.8,3450.1,34.270033]
[1721143267997,2.89805,3450.6,3450.1,34.270033]
[1721143268193,0.55,3451.7,3450.2,2.91736562]
[1721143268513,2.89803,3450.7,3450.2,2.91736562]
[1721143268795,2.8979,3450.8,3450.2,2.91736562]
[1721143269005,3.44681,3452.1,3450.2,2.91736562]
[1721143269006,2.86211,3450.6,3450.2,2.91736562]
[1721143269678,2.89814,3450.5,3450.2,2.91736562]
[1721143269875,2.89804,3450.7,3450.1,31.880533]
[1721143269876,2.89802,3450.7,3450.1,31.880533]
[1721143270076,2.89721,3451.6,3450.1,34.778993]
[1721143270274,2.89788,3450.8,3450.1,34.778993]
[1721143270472,3.44729,3451.5,3450.1,34.778993]
[1721143270473,2.89758,3451.2,3450.1,31.880533]
[1721143270779,8.69514,3450.2,3450.1,23.82695818]
[1721143271467,2.89838,3450.2,3450.1,23.82695818]
[1721143271817,2.89823,3450.4,3450.1,23.82695818]
[1721143272110,2.8983,3450.3,3450.1,23.82695818]
[1721143272399,5.79676,3450.2,3450.1,23.82695818]
[1721143272709,3.0,3451.3,3450.1,23.82695818]
[1721143272710,2.89807,3450.6,3450.1,23.82695818]
[1721143272875,2.89824,3450.4,3450.1,23.82695818]
[1721143273203,2.89773,3451.0,3450.1,26.209654]
[1721143273415,2.89751,3451.3,3450.2,2.89837]
[1721143273705,2.89689,3452.0,3450.2,2.89837]
[1721143273911,2.89777,3451.0,3450.1,29.108054]
[1721143274060,2.89777,3451.0,3450.1,26.209654]
[1721143274262,2.8981,3450.6,3450.1,23.82695818]
[1721143274465,2.8979,3450.8,3450.1,23.82695818]
[1721143274696,2.8977,3451.1,3450.1,26.72540818]
[1721143274697,2.89785,3450.9,3450.1,26.72540818]
[1721143274967,2.8977,3451.1,3450.1,26.72540818]
[1721143275401,2.89788,3450.8,3450.1,23.82695818]
[1721143275562,2.89725,3451.6,3450.1,23.82695818]
[1721143275563,2.8983,3450.3,3450.1,23.82695818]
[1721143276023,2.89838,3450.2,3450.1,23.82695818]
[1721143276175,2.89798,3450.7,3450.1,23.82695818]
[1721143276381,2.89768,3451.1,3450.1,23.82695818]
[1721143276576,2.89764,3451.1,3450.1,23.82695818]
[1721143276810,2.89789,3450.8,3450.1,23.82695818]
[1721143277174,2.89789,3450.8,3450.1,26.72537818]
[1721143277616,2.8981,3450.6,3450.1,23.82695818]
[1721143278002,2.89824,3450.4,3450.1,23.82695818]
[1721143278385,5.79676,3450.2,3450.1,23.82695818]
[1721143278922,8.69514,3450.2,3450.1,23.82695818]
[1721143279214,12.24514,3450.2,3450.1,23.82695818]
[1721143279791,2.89821,3450.4,3450.1,23.82695818]
[1721143280113,2.8983,3450.3,3450.1,23.82695818]
[1721143280311,2.89799,3450.7,3450.1,23.82695818]
[1721143280479,2.89813,3450.5,3450.1,23.82695818]
[1721143280818,2.89822,3450.4,3450.1,23.82695818]
[1721143280978,2.89832,3450.3,3450.1,23.82695818]
[1721143281178,2.89838,3450.2,3450.1,23.82695818]
[1721143281609,5.79676,3450.2,3450.1,23.82695818]
[1721143281815,6.34676,3450.2,3450.1,23.82695818]
[1721143282379,9.24514,3450.2,3450.1,23.82695818]
[1721143282625,12.24514,3450.2,3450.1,23.82695818]
[1721143282917,17.63862,3450.2,3450.1,23.82695818]
[1721143283102,17.63862,3450.2,3450.1,18.82705818]
[1721143283103,20.69062,3450.2,3450.1,18.82705818]
[1721143283321,20.69062,3450.2,3450.1,13.27625818]
[1721143283903,20.69062,3450.2,3450.1,10.37059649]
[1721143284206,25.089,3450.2,3450.1,6.02290649]
[1721143284406,11.84186,3450.2,3450.1,6.02290649]
[1721143284605,9.34676,3450.2,3450.1,6.02290649]
[1721143284996,6.44838,3450.2,3450.1,6.02290649]
[1721143285192,3.44838,3450.2,3450.1,6.02290649]
[1721143285527,2.89824,3450.4,3450.1,6.02290649]
[1721143285735,5.79676,3450.2,3450.1,6.02290649]
[1721143287029,6.34676,3450.2,3450.1,6.02290649]
[1721143287395,9.24514,3450.2,3450.1,6.02290649]
[1721143287907,12.24514,3450.2,3450.1,6.02290649]
[1721143288725,18.19552,3450.2,3450.1,6.02290649]
[1721143289810,21.64052,3450.2,3450.1,6.02290649]
[1721143290148,21.64052,3450.2,3449.1,0.148592]
[1721143290149,5.79844,3449.2,3449.1,0.148592]
[1721143290649,6.44922,3449.2,3449.1,0.148592]
[1721143290852,9.34844,3449.2,3449.1,0.148592]
[1721143291352,2.89874,3449.8,3449.1,0.148592]
[1721143291673,2.89907,3449.4,3449.1,0.148592]
[1721143291991,2.89888,3449.6,3449.1,0.148592]
[1721143292257,6.44905,3449.5,3449.1,0.148592]
[1721143292566,2.8984,3450.2,3449.2,2.89919]
[1721143292713,5.7672,3450.8,3449.1,0.148592]
[1721143292714,2.89882,3449.7,3449.1,0.148592]
[1721143292916,2.89815,3450.5,3449.4,2.89903]
[1721143293217,2.89799,3450.7,3449.7,2.89879]
[1721143293413,5.39585,3451.4,3449.8,3.188589]
[1721143293414,2.89769,3451.1,3449.8,3.188589]
[1721143293617,2.89756,3451.2,3450.4,2.8982]
[1721143293852,2.89756,3451.2,3450.0,2.3249]
[1721143293853,2.89763,3451.1,3450.0,2.3249]
[1721143294096,2.89763,3451.1,3449.2,3.052]
[1721143294097,2.89847,3450.1,3449.2,5.22406]
[1721143294224,2.8983,3450.3,3449.4,2.89904]
[1721143294425,2.89844,3450.2,3449.4,2.89904]
[1721143294716,3.0,3451.7,3449.5,2.89895]
[1721143294915,2.89746,3451.3,3449.3,2.89906]
[1721143295167,2.3055,3450.7,3449.1,0.148592]
[1721143295316,2.89895,3449.6,3449.1,0.148592]
[1721143295516,2.89897,3449.5,3449.1,0.148592]
[1721143295763,3.0,3450.4,3449.1,0.148592]
[1721143295914,2.89869,3449.9,3449.1,0.148592]
[1721143296119,3.0,3450.4,3449.1,0.148592]
[1721143296439,2.89869,3449.9,3449.1,3.047882]
[1721143296626,0.55,3449.8,3449.1,0.148592]
[1721143297061,3.0,3450.3,3449.1,0.7433442]
[1721143297216,2.89831,3450.3,3449.5,2.89895]
[1721143298152,2.89848,3450.1,3449.1,3.047882]
[1721143298374,2.89863,3449.9,3449.1,0.148592]
[1721143298672,2.89879,3449.8,3449.1,0.148592]
[1721143298873,2.89897,3449.5,3449.1,0.148592]
[1721143299252,3.55,3449.7,3449.1,0.148592]
[1721143299253,5.79844,3449.2,3449.1,0.148592]
[1721143299464,6.602,3449.7,3449.1,0.148592]
[1721143299465,0.55,3449.4,3449.1,0.148592]
[1721143299775,0.55,3449.7,3449.1,0.148592]
[1721143299776,5.79844,3449.2,3449.1,0.148592]
[1721143300168,9.34844,3449.2,3449.1,0.148592]
[1721143302643,12.24766,3449.2,3449.1,0.148592]
[1721143303582,9.34844,3449.2,3449.1,0.148592]
[1721143304174,8.79844,3449.2,3449.1,0.148592]
[1721143304978,8.79844,3449.2,3449.1,0.148592]
[1721143305678,9.34844,3449.2,3449.1,0.148592]
[1721143306647,12.24766,3449.2,3449.1,0.148592]
[1721143307052,9.34844,3449.2,3449.1,0.148592]
[1721143307497,6.44922,3449.2,3449.1,0.148592]
[1721143307662,9.34844,3449.2,3449.1,0.148592]
[1721143308798,12.24766,3449.2,3449.1,0.148592]
[1721143310304,21.50088,3449.2,3449.1,2e-06]
[1721143310484,23.01178277,3449.2,3449.1,2e-06]
[1721143310882,21.50088,3449.2,3449.1,2e-06]
[1721143311493,24.4001,3449.2,3449.1,2e-06]
[1721143311669,25.9001,3449.2,3449.1,2e-06]
[1721143312384,27.4001,3449.2,3449.1,2e-06]
[1721143312617,29.21643287,3449.2,3449.1,2e-06]
[1721143312972,14.99966,3449.2,3449.1,2e-06]
[1721143313164,11.69766,3449.2,3449.1,2e-06]
[1721143313376,14.59688,3449.2,3449.1,2e-06]
[1721143313572,20.50947988,3449.2,3449.1,2e-06]
[1721143313767,18.9961,3449.2,3449.1,2e-06]
[1721143313972,23.86443287,3449.2,3449.1,2e-06]
[1721143314177,22.0481,3449.2,3449.1,2e-06]
[1721143314479,24.4149553,3449.2,3449.1,2e-06]
[1721143314669,19.69888,3449.2,3449.1,2e-06]
[1721143314866,24.41462087,3449.2,3449.1,2e-06]
[1721143315075,19.69888,3449.2,3449.1,2e-06]
[1721143316017,22.5981,3449.2,3449.1,2e-06]
[1721143316310,18.19888,3449.2,3449.1,2e-06]
[1721143316515,15.29966,3449.2,3449.1,2e-06]
[1721143316724,11.69766,3449.2,3449.1,2e-06]
[1721143317570,5.79844,3449.2,3449.1,2e-06]
[1721143318516,8.69766,3449.2,3449.1,2e-06]
[1721143318888,9.24766,3449.2,3449.1,2e-06]
[1721143319398,12.24766,3449.2,3449.1,2e-06]
[1721143319594,9.34844,3449.2,3449.1,2e-06]
[1721143319982,2.8988,3449.7,3449.1,2e-06]
[1721143319983,1.51367387,3449.7,3449.1,2e-06]
[1721143320318,2.89883,3449.7,3449.1,2e-06]
[1721143320472,2.89897,3449.5,3449.1,2e-06]
[1721143320675,2.89922,3449.2,3449.1,2e-06]
[1721143320892,5.79844,3449.2,3449.1,2e-06]
[1721143321099,9.10044,3449.2,3449.1,2e-06]
[1721143321321,2.89922,3449.2,3449.1,2e-06]
[1721143321621,2.89914,3449.3,3449.1,2e-06]
[1721143321919,0.55,3449.2,3449.1,2e-06]
[1721143322716,6.34844,3449.2,3449.1,2e-06]
[1721143323083,12.24766,3449.2,3449.1,2e-06]
[1721143323815,14.06580622,3449.2,3449.1,2e-06]
[1721143324211,19.69888,3449.2,3449.1,2e-06]
[1721143324379,24.7192706,3449.2,3449.1,2e-06]
[1721143324582,25.10373277,3449.2,3449.1,2e-06]
[1721143325112,24.9978,3449.2,3449.1,2e-06]
[1721143325487,20.70668627,3449.2,3449.1,2e-06]
[1721143325726,21.19888,3449.2,3449.1,2e-06]
[1721143325933,19.69888,3449.2,3449.1,2e-06]
[1721143326082,16.79966,3449.2,3449.1,2e-06]
[1721143326284,15.29966,3449.2,3449.1,2e-06]
[1721143326484,11.47102791,3449.2,3449.1,2e-06]
[1721143326727,8.69766,3449.2,3449.1,2e-06]
[1721143327233,11.59688,3449.2,3449.1,2e-06]
[1721143327440,16.14888,3449.2,3449.1,2e-06]
[1721143327918,22.10547949,3449.2,3449.1,2e-06]
[1721143328131,24.0981,3449.2,3449.1,2e-06]
[1721143328328,22.5981,3449.2,3449.1,2e-06]
[1721143328545,22.20667917,3449.2,3449.1,2e-06]
[1721143328704,22.5981,3449.2,3449.1,2e-06]
[1721143329237,24.0981,3449.2,3449.1,2e-06]
[1721143329397,26.60558025,3449.2,3449.1,2e-06]
[1721143329733,24.0981,3449.2,3449.1,2e-06]
[1721143329938,21.50088,3449.2,3449.1,2e-06]
[1721143330143,14.99966,3449.2,3449.1,2e-06]
[1721143330490,11.99966,3449.2,3449.1,2e-06]
[1721143330733,13.81867845,3449.2,3449.1,2e-06]
[1721143331093,12.13519476,3449.2,3449.1,2e-06]
[1721143331329,5.79844,3449.2,3449.1,2e-06]
[1721143331535,4.41507705,3449.2,3449.1,2e-06]
[1721143331702,2.89922,3449.2,3449.1,2e-06]
[1721143332336,1.51585705,3449.3,3449.1,2e-06]
[1721143332541,1.51585705,3449.4,3449.1,2e-06]
[1721143332697,2.89906,3449.4,3449.1,2e-06]
[1721143332895,4.41473705,3449.6,3449.1,2e-06]
[1721143332896,2.899,3449.5,3449.1,2e-06]
[1721143333605,2.89907,3449.4,3449.1,2e-06]
[1721143334115,2.89922,3449.2,3449.1,2e-06]
[1721143334298,2.89912,3449.4,3449.1,2e-06]
[1721143334630,2.8992,3449.3,3449.1,2e-06]
[1721143334845,4.41510559,3449.4,3449.1,2e-06]
[1721143335230,1.51605559,3449.5,3449.1,2e-06]
[1721143335596,2.89897,3449.5,3449.1,2.497502]
[1721143336663,1.51605559,3449.6,3449.1,2.497502]
[1721143336849,1.51605559,3449.7,3449.1,2.497502]
[1721143337073,2.89889,3449.6,3449.1,2.497502]
[1721143337257,1.51605559,3449.7,3449.1,2.497502]
[1721143337460,1.51570165,3449.9,3449.2,2.89921]
[1721143337680,2.89863,3449.9,3449.2,2.89921]
[1721143338584,2.89855,3450.0,3449.2,2.89921]
[1721143338924,2.89851,3450.1,3449.2,2.89921]
[1721143339156,4.41384863,3450.2,3449.2,2.89921]
[1721143339157,1.51546863,3450.2,3449.2,2.89921]
[1721143339328,0.55,3450.1,3449.3,3.7287332]
[1721143339530,1.51546863,3450.4,3449.3,3.7287332]
[1721143339726,2.89827,3450.4,3449.5,2.89895]
[1721143339956,2.89838,3450.2,3449.5,2.89895]
[1721143340163,4.41373863,3450.4,3449.5,2.89895]
[1721143340464,2.89831,3450.3,3449.5,2.89895]
[1721143341077,2.89841,3450.2,3449.5,2.89895]
[1721143341873,0.55,3450.1,3449.3,3.7286732]
[1721143342172,0.55,3450.1,3449.5,2.3191]
[1721143342488,0.55,3450.2,3449.5,5.21806]
[1721143342778,1.5155116,3450.9,3450.2,2.3191]
[1721143342977,2.89762,3451.1,3450.2,5.21741]
[1721143343127,2.89762,3451.1,3450.2,5.21295813]
[1721143343329,2.89762,3451.1,3450.3,2.89826]
[1721143343537,2.89772,3451.0,3450.2,2.31464813]
[1721143343734,1.51392427,3451.0,3450.2,2.31464813]
[1721143343975,2.89812,3450.6,3450.2,2.31464813]
[1721143344189,2.89822,3450.4,3449.3,2.89912]
[1721143344363,3.44836,3450.3,3449.3,2.89908]
[1721143344540,2.89844,3450.2,3449.3,2.89908]
[1721143344742,2.89855,3450.0,3449.0,2.89936]
[1721143344950,2.89855,3450.0,3448.7,2.89959]
[1721143345155,2.89855,3450.0,3448.3,2.89995]
[1721143345156,0.55,3449.9,3448.3,2.89995]
[1721143345332,2.89895,3449.6,3448.4,2.89985]
[1721143345577,2.89922,3449.2,3448.1,2.90013]
[1721143345875,2.89922,3449.2,3447.7,1.8296]
[1721143345876,3.44922,3449.2,3448.2,2.90005]
[1721143346083,3.44922,3449.2,3448.1,2.90012]
[1721143346239,3.44922,3449.2,3448.4,2.2811]
[1721143346635,7.86314438,3449.2,3448.4,2.2811]
[1721143347050,4.96392438,3449.2,3448.4,2.2811]
[1721143347342,3.44922,3449.2,3448.4,2.2811]
[1721143348151,7.86314438,3449.2,3447.8,2.438]
[1721143348363,11.16608525,3449.2,3447.8,2.438]
[1721143348574,9.34844,3449.2,3447.8,5.33838]
[1721143348876,11.16639766,3449.2,3447.8,5.33838]
[1721143349052,9.34844,3449.2,3447.8,5.33838]
[1721143349254,11.16626998,3449.2,3447.8,5.33838]
[1721143349460,11.16622744,3449.2,3447.8,5.33838]
[1721143349677,9.34844,3449.2,3447.8,2.438]
[1721143350053,11.16637512,3449.2,3447.8,5.33839]
[1721143350269,6.44922,3449.2,3448.1,2.90013]
[1721143350826,1.51478824,3449.4,3448.4,2.89983]
[1721143350945,3.302,3450.0,3448.9,2.258]
[1721143350946,1.51478824,3449.6,3448.9,2.258]
[1721143351285,2.89906,3449.4,3448.9,2.258]
[1721143351495,1.51478824,3449.7,3448.9,2.258]
[1721143351693,2.89886,3449.7,3448.9,2.258]
[1721143351987,2.89889,3449.6,3448.9,2.258]
[1721143352348,4.41356824,3449.8,3448.9,2.258]
[1721143352349,2.89897,3449.5,3448.9,2.258]
[1721143352549,2.89906,3449.4,3448.9,2.258]
[1721143353276,0.55,3449.3,3448.9,2.258]
[1721143353951,6.44894,3449.6,3448.9,2.258]
[1721143354147,2.89898,3449.5,3448.9,2.258]
[1721143354352,0.55,3449.4,3448.9,2.258]
[1721143354772,3.44906,3449.4,3448.9,2.258]
[1721143355175,0.55,3449.4,3448.9,2.258]
[1721143355365,0.55,3449.5,3448.9,2.258]
[1721143356064,0.55,3449.6,3448.9,2.258]
[1721143356405,3.0,3449.7,3449.0,2.89936]
[1721143356688,3.0,3449.9,3448.9,2.258]
[1721143356982,2.8988,3449.7,3448.9,2.258]
[1721143357184,3.0,3449.6,3448.9,2.258]
[1721143357391,1.51418937,3450.0,3449.0,2.89938]
[1721143357550,5.89855,3450.0,3449.0,2.89938]
[1721143358094,0.55,3449.9,3449.0,2.89938]
[1721143358257,0.55,3449.9,3449.1,2.899292]
[1721143358597,0.55,3449.9,3449.3,2.89913]
[1721143358908,0.55,3449.9,3449.5,2.8989]
[1721143359201,1.51411343,3450.9,3449.9,2.89862]
[1721143359396,2.89803,3450.7,3449.9,2.89862]
[1721143359703,2.89788,3450.8,3450.0,2.89854]
[1721143359996,2.89794,3450.8,3450.0,2.89854]
[1721143360160,2.89796,3450.7,3450.0,2.89854]
[1721143360347,4.41185343,3451.0,3450.0,2.89854]
[1721143360754,2.89774,3451.0,3450.0,2.89854]
[1721143360975,2.89774,3451.0,3450.0,3.5362451]
[1721143361176,2.89774,3451.0,3450.2,2.3966]
[1721143361351,2.89763,3451.1,3450.3,2.89827]
[1721143362288,2.89763,3451.1,3450.2,2.3966]
[1721143362289,2.89773,3451.0,3450.2,2.3966]
[1721143362796,0.55,3450.9,3450.2,5.29497]
[1721143363192,2.89793,3450.8,3450.2,2.3966]
[1721143363392,0.55,3450.7,3450.2,2.3966]
[1721143364763,2.89772,3451.0,3450.2,2.3966]
[1721143364964,3.0,3450.9,3450.3,2.89824]
[1721143365354,0.55,3450.8,3450.3,2.89824]
[1721143365586,0.55,3450.8,3450.2,5.2949]
[1721143365587,0.55,3450.8,3450.2,2.3966]
[1721143365796,2.89788,3450.8,3450.2,2.3966]
[1721143366258,0.55,3450.7,3450.2,2.3966]
[1721143366897,3.0,3450.9,3450.2,2.3966]
[1721143366898,3.44788,3450.8,3450.2,2.3966]
[1721143367059,2.89797,3450.7,3450.2,2.3966]
[1721143367259,0.55,3450.6,3450.2,2.3966]
[1721143367982,0.55,3450.7,3450.2,2.3966]
[1721143368290,3.44797,3450.7,3450.2,2.3966]
[1721143368655,0.55,3450.7,3450.2,5.29492]
[1721143368869,0.55,3450.8,3450.2,5.29492]
[1721143369196,0.55,3450.8,3450.3,2.89829]
[1721143369562,0.55,3450.9,3450.3,2.89829]
[1721143372373,0.55,3450.9,3450.4,2.8982]
[1721143372572,0.55,3450.9,3450.2,5.29492]
[1721143373160,3.44779,3450.9,3450.2,2.3966]
[1721143373400,3.44779,3450.9,3450.2,5.29496]
[1721143373577,2.89797,3450.7,3450.2,2.3966]
[1721143373772,3.44805,3450.6,3450.2,2.3966]
[1721143373974,3.44805,3450.6,3449.0,3.0]
[1721143373975,2.89823,3450.4,3449.7,2.3449]
[1721143374531,0.55,3450.3,3449.7,2.3449]
[1721143374819,5.79652,3450.4,3449.7,2.3449]
[1721143374977,2.89833,3450.3,3449.7,2.3449]
[1721143375176,2.89803,3450.7,3449.7,2.3449]
[1721143375366,2.89851,3450.1,3449.7,2.3449]
[1721143375874,2.89851,3450.1,3449.2,5.15131]
[1721143376202,2.89855,3450.0,3449.2,5.15131]
[1721143376406,2.89855,3450.0,3449.3,2.89913]
[1721143376598,2.89863,3449.9,3449.2,2.2521]
[1721143376803,2.89872,3449.8,3449.2,2.2521]
[1721143377181,2.89895,3449.6,3449.1,2e-06]
[1721143377568,1.51454469,3450.1,3449.1,2e-06]
[1721143377767,2.89908,3449.4,3449.1,2e-06]
[1721143378200,2.89919,3449.3,3449.1,2e-06]
[1721143378587,5.79844,3449.2,3449.1,2e-06]
[1721143379295,8.79844,3449.2,3449.1,2e-06]
[1721143379669,10.31298469,3449.2,3449.1,2e-06]
[1721143379985,8.79844,3449.2,3449.1,2e-06]
[1721143380181,10.31347585,3449.2,3449.1,2e-06]
[1721143380581,10.3135482,3449.2,3449.1,2e-06]
[1721143381072,8.79844,3449.2,3449.1,2e-06]
[1721143381302,11.69766,3449.2,3449.1,2e-06]
[1721143381614,15.13523192,3449.2,3449.1,2e-06]
[1721143381773,15.54966,3449.2,3449.1,2e-06]
[1721143381970,17.99706,3449.2,3449.1,2e-06]
[1721143382202,25.76602403,3449.2,3449.1,2e-06]
[1721143382397,24.08391258,3449.2,3449.1,2e-06]
[1721143382603,26.20470635,3449.2,3449.1,2e-06]
[1721143383108,24.08391258,3449.2,3449.1,2e-06]
[1721143383310,30.60392635,3449.2,3449.1,2e-06]
[1721143383609,28.48313258,3449.2,3449.1,2e-06]
[1721143383814,30.60215782,3449.2,3449.1,2e-06]
[1721143384108,28.48313258,3449.2,3449.1,2e-06]
[1721143384414,32.30215769,3449.2,3449.1,2e-06]
[1721143384664,32.30215769,3449.2,3446.9,2.3551]
[1721143384665,2.90106,3447.1,3446.9,2.3551]
[1721143384912,2.90107,3447.1,3446.4,2.352]
[1721143385076,2.90117,3446.9,3446.4,2.87738]
[1721143385277,2.90117,3446.9,3446.4,2.352]
[1721143385816,2.9013,3446.8,3446.4,2.352]
[1721143386321,2.90108,3447.0,3446.4,2.352]
[1721143386322,2.90133,3446.7,3446.4,2.352]
[1721143386473,2.90108,3447.0,3445.8,2.2896]
[1721143386474,2.90107,3447.0,3445.8,2.2896]
[1721143386677,5.80416,3445.8,3445.7,0.148592]
[1721143386872,8.70624,3445.8,3445.7,0.148592]
[1721143387075,12.25624,3445.8,3445.7,0.148592]
[1721143387688,9.35416,3445.8,3445.7,0.148592]
[1721143388025,12.25624,3445.8,3445.7,0.148592]
[1721143389791,8.80416,3445.8,3445.7,0.148592]
[1721143390003,5.90208,3445.8,3445.7,0.148592]
[1721143390207,2.90191,3446.1,3445.7,0.148592]
[1721143390417,2.90208,3445.8,3445.7,0.148592]
[1721143390875,5.80416,3445.8,3445.7,0.148592]
[1721143391076,8.80416,3445.8,3445.7,0.148592]
[1721143391327,11.70624,3445.8,3445.7,0.148592]
[1721143391484,8.80416,3445.8,3445.7,0.148592]
[1721143391897,5.90208,3445.8,3445.7,0.148592]
[1721143392537,3.0,3445.8,3445.7,0.148592]
[1721143392743,2.90175,3446.2,3445.7,2.443992]
[1721143393030,2.90083,3447.3,3445.7,2.443992]
[1721143393031,2.90132,3446.7,3445.7,2.6883912]
[1721143393243,2.9015,3446.5,3445.8,2.90207]
[1721143393655,3.302,3447.5,3445.7,2.443992]
[1721143393795,4.40036,3447.9,3445.7,2.443992]
[1721143393796,2.90172,3446.3,3445.7,2.443992]
[1721143394130,2.90175,3446.2,3445.7,2.443992]
[1721143394331,2.90187,3446.1,3445.7,2.443992]
[1721143394532,2.90208,3445.8,3445.7,0.148592]
[1721143394830,2.9018,3446.2,3445.7,0.148592]
[1721143395036,2.90167,3446.3,3445.7,0.148592]
[1721143395194,2.90189,3446.1,3445.7,0.148592]
[1721143395394,2.90167,3446.3,3445.7,0.148592]
[1721143395596,2.90149,3446.5,3445.7,0.148592]
[1721143395841,5.19528,3447.6,3445.7,0.148592]
[1721143395842,2.90163,3446.4,3445.7,0.4536842]
[1721143396063,2.90167,3446.3,3445.7,0.148592]
[1721143396353,2.90186,3446.1,3445.7,0.148592]
[1721143396557,2.90208,3445.8,3445.7,0.148592]
[1721143396922,2.90195,3446.0,3445.7,0.148592]
[1721143397108,6.302,3446.6,3445.7,0.148592]
[1721143397109,2.90208,3445.8,3445.7,0.148592]
[1721143397311,5.80416,3445.8,3445.7,0.148592]
[1721143397516,8.80416,3445.8,3445.7,0.148592]
[1721143398318,11.70624,3445.8,3445.7,0.148592]
[1721143400218,12.25624,3445.8,3445.7,0.148592]
[1721143401139,8.80416,3445.8,3445.7,0.148592]
[1721143401630,11.70624,3445.8,3445.7,0.148592]
[1721143402653,20.03032,3445.8,3445.7,0.148592]
[1721143402977,23.4824,3445.8,3445.7,2e-06]